bitfinex-derivatives/quotes_ETHF0:USTF0_20250612
["timestamp","ask_amount","ask_price","bid_price","bid_amount"]
[1749691903108,1.11997275,2761.3,2761.2,0.72409]
[1749691903304,0.72412,2761.2,2761.1,0.72414]
[1749691903514,1.11997275,2761.2,2761.1,0.72414]
[1749691903709,1.11997275,2761.3,2760.9,0.00364675]
[1749691903908,0.72416,2761.1,2760.9,0.00364675]
[1749691904209,1.11997275,2761.0,2760.9,0.00364675]
[1749691904803,1.12205161,2761.0,2760.9,3.21144675]
[1749691905008,0.6332,2761.6,2761.3,0.72407]
[1749691905315,1.12093369,2761.5,2761.4,0.72406]
[1749691905604,1.12093369,2761.5,2761.4,2.01316]
[1749691906609,3.2078,2762.3,2762.0,0.7239]
[1749691906805,0.00543045,2762.1,2762.0,5.4939]
[1749691907003,0.00543045,2762.1,2762.0,6.1164]
[1749691907205,0.00543045,2762.1,2762.0,7.3596]
[1749691907415,0.00543045,2762.1,2762.0,10.5674]
[1749691907704,0.00543045,2762.1,2761.7,0.0620172]
[1749691907911,0.00543045,2762.1,2761.8,4.77]
[1749691908108,3.93172,2762.0,2761.7,0.0620172]
[1749691908310,0.00543045,2762.1,2761.8,0.72394]
[1749691908512,0.00543045,2762.1,2761.8,1.2432]
[1749691908712,0.00543045,2762.1,2761.9,0.72391]
[1749691908903,0.00543045,2762.1,2762.0,1.2997]
[1749691909509,0.00543045,2762.1,2762.0,2.0236]
[1749691910412,0.00543045,2762.1,2762.0,5.2314]
[1749691911206,0.2895,2762.8,2762.0,9.5075]
[1749691911409,0.2895,2762.8,2762.3,0.7238]
[1749691911611,0.72375,2762.6,2762.3,0.7238]
[1749691911811,0.2895,2762.8,2762.1,0.6248]
[1749691912009,3.2078,2762.6,2762.1,0.6248]
[1749691912310,0.72385,2762.2,2762.1,0.6248]
[1749691912505,3.2078,2762.2,2761.7,0.0620172]
[1749691912707,0.72396,2761.8,2761.7,0.0620172]
[1749691913112,3.93176,2761.8,2761.7,0.0620172]
[1749691915106,0.72394,2761.9,2761.7,0.0620172]
[1749691915616,4.4359,2762.1,2761.7,0.0620172]
[1749691915907,4.4359,2762.1,2761.9,0.72392]
[1749691916113,3.8094,2762.1,2761.8,1.2613]
[1749691916312,3.8094,2762.1,2761.9,0.72392]
[1749691916511,0.6016,2762.1,2761.9,0.72392]
[1749691916707,1.32548,2762.1,2761.9,0.72392]
[1749691917014,1.32549,2762.1,2761.8,1.98524]
[1749691917214,1.32549,2762.1,2761.8,1.2613]
[1749691917414,1.32549,2762.1,2761.8,1.98524]
[1749691917716,0.72391,2762.0,2761.7,0.7859872]
[1749691917914,0.72391,2762.0,2761.8,0.72395]
[1749691918615,0.6016,2762.1,2761.7,0.0620172]
[1749691918809,0.72396,2761.8,2761.7,0.0620172]
[1749691919519,4.4305,2762.0,2761.7,0.7859772]
[1749691919719,1.11082151,2761.9,2761.7,0.0620172]
[1749691920014,0.72395,2761.9,2761.7,0.7859972]
[1749691920215,0.72396,2761.8,2761.7,0.0620172]
[1749691921317,0.72417,2761.0,2760.9,0.00364675]
[1749691921618,3.93197,2761.0,2760.9,0.00364675]
[1749691922120,4.31914802,2761.0,2760.9,0.00364675]
[1749691922318,1.23573045,2761.2,2760.9,0.00364675]
[1749691922516,1.83479199,2761.1,2760.9,0.72782675]
[1749691922716,0.72417,2761.0,2760.9,6.75e-06]
[1749691923012,4.4381,2761.0,2760.0,3.2078]
[1749691923214,3.2078,2760.6,2760.1,1.1898]
[1749691923418,0.72423,2760.8,2760.5,0.7243]
[1749691923720,3.2078,2761.0,2760.6,4.77]
[1749691923913,0.00543045,2761.2,2760.6,6.0544]
[1749691924108,0.00543045,2761.2,2761.1,0.72414]
[1749691924312,0.00543045,2761.2,2761.1,5.49414]
[1749691924625,3.2078,2762.0,2761.1,6.6622]
[1749691924819,0.72397,2761.8,2761.5,0.72402]
[1749691925019,0.72397,2761.8,2761.5,0.72403]
[1749691925219,3.2078,2762.0,2761.4,4.77]
[1749691925520,0.72399,2761.7,2761.4,5.49404]
[1749691925719,3.2078,2761.7,2761.4,4.77]
[1749691925923,0.72402,2761.6,2761.4,4.77]
[1749691926116,3.2078,2761.7,2761.1,1.8922]
[1749691926315,0.72403,2761.6,2761.3,0.72408]
[1749691926617,3.2078,2761.7,2761.1,1.8922]
[1749691926821,3.2078,2761.4,2761.2,4.77]
[1749691927016,3.93187,2761.4,2761.2,4.77]
[1749691927322,0.72409,2761.3,2761.2,4.77]
[1749691928921,5.1289,2761.4,2761.0,4.77]
[1749691929119,1.37446,2761.4,2761.1,0.72414]
[1749691929316,1.37446,2761.4,2761.2,0.72411]
[1749691929515,0.6504,2761.4,2761.2,0.72411]
[1749691929715,1.37447,2761.4,2761.1,0.72412]
[1749691929918,0.6504,2761.4,2761.0,4.77]
[1749691930220,0.6504,2761.4,2761.0,5.49415]
[1749691930414,0.7241,2761.3,2761.0,4.77]
[1749691930813,1.37447,2761.4,2761.1,0.72414]
[1749691931112,0.6504,2761.4,2761.1,0.72414]
[1749691931314,0.7241,2761.3,2761.0,4.77]
[1749691931519,0.7241,2761.3,2761.1,0.72412]
[1749691931721,1.37448,2761.4,2761.1,0.72412]
[1749691931921,0.72409,2761.3,2761.1,0.72412]
[1749691932615,0.72413,2761.2,2761.0,0.72415]
[1749691932820,0.72414,2761.1,2760.9,0.0620172]
[1749691933018,0.72412,2761.2,2761.0,0.72415]
[1749691933619,0.72412,2761.2,2761.1,0.72414]
[1749691933817,0.72412,2761.2,2761.0,0.72415]
[1749691934123,3.8582,2761.4,2760.9,0.0620172]
[1749691934318,0.72417,2761.0,2760.9,0.0620172]
[1749691934820,1.94707,2761.0,2760.9,0.0620172]
[1749691935324,8.0972975,2761.0,2760.9,0.0620172]
[1749691936528,0.72417,2761.0,2760.9,0.7862072]
[1749691936720,3.2078,2761.1,2761.0,0.72417]
[1749691938115,3.2078,2761.1,2761.0,2.01587]
[1749691938724,0.72406,2761.4,2761.2,0.72409]
[1749691938924,0.6017,2761.5,2761.0,1.2917]
[1749691939119,1.32574,2761.5,2761.3,0.72408]
[1749691939320,0.6017,2761.5,2761.1,0.72414]
[1749691939523,1.32574,2761.5,2761.0,1.2917]
[1749691939719,1.32574,2761.5,2761.1,0.72412]
[1749691939720,0.72409,2761.3,2761.1,0.72412]
[1749691939919,1.32575,2761.5,2761.3,0.72407]
[1749691940221,0.2896,2761.7,2761.6,0.72401]
[1749691940425,0.72395,2761.9,2761.6,0.72401]
[1749691940923,0.72398,2761.8,2761.5,0.72402]
[1749691941120,0.72401,2761.6,2761.5,1.2532]
[1749691941315,1.8099,2761.8,2761.0,0.0620172]
[1749691941521,0.72414,2761.1,2761.0,0.0620172]
[1749691942131,1.87711958,2761.1,2761.0,0.0620172]
[1749691942323,3.10721958,2761.1,2761.0,0.0620172]
[1749691945029,1.87711958,2761.1,2761.0,0.0620172]
[1749691945334,0.72414,2761.1,2761.0,0.0620172]
[1749691945532,0.6105,2761.2,2761.0,0.0620172]
[1749691945828,0.2897,2761.3,2761.2,0.72411]
[1749691946024,1.0138,2761.3,2761.1,2.43]
[1749691946226,0.2897,2761.3,2761.2,5.51511]
[1749691946735,0.2897,2761.3,2761.2,4.791]
[1749691946934,1.01379,2761.3,2761.2,4.791]
[1749691947636,0.2897,2761.3,2761.2,4.791]
[1749691947836,1.01379,2761.3,2761.2,5.51511]
[1749691948130,1.01379,2761.3,2761.2,4.791]
[1749691948633,1.01379,2761.3,2761.2,5.51511]
[1749691949144,1.01379,2761.3,2761.2,0.72411]
[1749691949445,0.2897,2761.3,2761.2,0.72411]
[1749691949836,0.72411,2761.2,2761.1,3.15412]
[1749691950145,0.2897,2761.3,2761.2,0.72411]
[1749691950741,0.2897,2761.3,2761.1,2.43]
[1749691950742,1.01381,2761.3,2761.1,3.15413]
[1749691950945,0.2897,2761.3,2761.1,2.43]
[1749691951240,1.0138,2761.3,2761.1,3.15412]
[1749691951436,0.2897,2761.3,2761.2,0.72411]
[1749691952744,0.2897,2761.3,2761.1,2.43]
[1749691953046,0.72411,2761.2,2761.1,3.15413]
[1749691953252,1.01381,2761.3,2761.1,3.15413]
[1749691953548,0.72411,2761.2,2761.1,2.43]
[1749691953746,0.72411,2761.2,2761.1,0.6119]
[1749691954541,4.2216,2761.3,2761.1,0.6119]
[1749691954739,4.22159,2761.3,2761.2,0.72411]
[1749691954941,5.3752425,2761.3,2761.2,1.98221]
[1749691955151,0.72411,2761.2,2761.1,1.33602]
[1749691955452,0.72414,2761.1,2761.0,0.72415]
[1749691955649,3.4975,2761.3,2760.8,1.908]
[1749691955847,3.4975,2761.3,2760.8,2.6322]
[1749691955848,0.72419,2760.9,2760.8,2.6322]
[1749691956152,1.35343,2761.2,2761.1,0.72414]
[1749691956352,2.50741224,2761.2,2761.1,0.72414]
[1749691956947,1.15398224,2761.2,2761.1,0.72414]
[1749691958149,1.0138,2761.3,2761.1,0.72414]
[1749691958345,1.16003864,2761.2,2761.1,0.72414]
[1749691958651,0.72411,2761.2,2761.1,0.72414]
[1749691958853,1.16001438,2761.2,2761.1,0.72414]
[1749691959044,1.88412438,2761.2,2761.1,0.72414]
[1749691959357,1.16001438,2761.2,2761.1,0.72414]
[1749691959546,0.2897,2761.3,2761.2,0.72411]
[1749691959741,1.4497584,2761.3,2761.2,0.7861272]
[1749691959950,1.4497584,2761.3,2761.2,0.0620172]
[1749691960150,1.4497584,2761.3,2761.2,1.3136172]
[1749691960453,1.4497584,2761.3,2761.2,2.0377272]
[1749691961455,0.2897,2761.3,2761.2,2.0377272]
[1749691963451,2.17383996,2761.3,2761.2,0.0620172]
[1749691963757,2.17383996,2761.3,2761.2,0.7861272]
[1749691964053,1.44974996,2761.3,2761.2,0.7861272]
[1749691965355,3.2078,2762.7,2761.9,0.72393]
[1749691965652,0.72376,2762.6,2761.9,25.98673]
[1749691965851,3.93154,2762.7,2762.5,0.72375]
[1749691966150,3.93154,2762.7,2761.2,0.0620172]
[1749691966151,1.80947,2762.5,2761.2,0.0620172]
[1749691966350,3.2078,2761.3,2760.1,3.2078]
[1749691966653,3.2078,2761.0,2760.2,1.2236]
[1749691966848,1.31173045,2760.9,2760.3,0.00543045]
[1749691967249,0.72426,2760.7,2760.3,0.72976045]
[1749691967456,0.72423,2760.8,2760.5,0.72428]
[1749691967748,0.72423,2760.8,2760.5,0.7243]
[1749691968155,0.72423,2760.8,2760.5,1.9479]
[1749691968954,0.72964045,2760.9,2760.6,0.72427]
[1749691969157,0.72963045,2760.9,2760.6,0.72426]
[1749691969351,0.00543045,2760.9,2760.4,3.2078]
[1749691969553,0.72425,2760.7,2760.5,0.7243]
[1749691970056,0.00543045,2760.9,2760.4,4.5094172]
[1749691970253,1.22503045,2760.9,2760.4,4.5094172]
[1749691970453,0.72427,2760.7,2760.4,5.2337272]
[1749691970755,1.22503045,2760.9,2760.4,5.2337272]
[1749691970951,0.72425,2760.7,2760.4,4.5094172]
[1749691971147,0.72425,2760.7,2760.4,5.2337172]
[1749691971350,1.22503045,2760.9,2760.4,5.2337172]
[1749691971550,0.72426,2760.7,2760.5,0.72429]
[1749691972052,0.72426,2760.7,2760.5,1.96389]
[1749691972253,0.00543045,2760.9,2760.6,0.72427]
[1749691972453,0.72426,2760.7,2760.5,1.96389]
[1749691972649,0.00543045,2760.9,2760.5,1.2396]
[1749691972948,0.72422,2760.8,2760.6,0.72425]
[1749691973157,0.72425,2760.7,2760.5,1.2396]
[1749691973551,0.72427,2760.6,2760.5,1.9639]
[1749691973856,0.00543045,2760.9,2760.4,3.2698172]
[1749691974050,0.00543045,2760.9,2760.5,0.72429]
[1749691974358,0.72423,2760.8,2760.6,0.72427]
[1749691974557,0.00543045,2760.9,2760.7,0.72422]
[1749691974558,0.72963045,2760.9,2760.7,0.72422]
[1749691974856,0.72963045,2760.9,2760.4,4.4819172]
[1749691975057,0.72423,2760.8,2760.4,4.4819172]
[1749691975257,0.72423,2760.8,2760.7,0.72424]
[1749691975457,0.72422,2760.8,2760.7,0.72424]
[1749691975657,0.72964045,2760.9,2760.7,0.72424]
[1749691975857,0.72964045,2760.9,2760.4,4.4819172]
[1749691975858,0.00543045,2760.9,2760.8,0.72422]
[1749691977355,0.00543045,2760.9,2760.8,1.98592]
[1749691978160,0.00543045,2760.9,2760.8,1.2617]
[1749691978347,0.00543045,2760.9,2760.7,3.93203]
[1749691978546,0.7243,2760.5,2760.4,6.0437172]
[1749691978755,0.7243,2760.5,2760.4,4.7820172]
[1749691978958,0.72429,2760.6,2760.4,5.5063372]
[1749691979559,0.72429,2760.6,2760.5,0.7243]
[1749691979757,1.36595045,2760.9,2760.4,4.7820172]
[1749691980059,0.72425,2760.7,2760.5,0.72428]
[1749691980258,0.72423,2760.8,2760.6,0.72427]
[1749691980459,0.7243,2760.5,2760.4,0.0620172]
[1749691981162,0.7243,2760.5,2760.4,0.7863372]
[1749691981363,0.7243,2760.5,2760.4,0.0620172]
[1749691981958,0.72427,2760.6,2760.5,0.72428]
[1749691982558,0.72429,2760.6,2760.5,0.7243]
[1749691982755,0.72429,2760.6,2760.4,0.7863272]
[1749691982957,1.8768,2760.7,2760.4,0.7863272]
[1749691983157,0.7243,2760.5,2760.4,0.0620172]
[1749691983359,1.8768,2760.7,2760.4,0.0620172]
[1749691983662,0.72429,2760.6,2760.4,0.7863172]
[1749691983964,0.7243,2760.5,2760.4,0.7863172]
[1749691984369,0.7243,2760.5,2759.7,23.71926]
[1749691984370,9.35616946,2760.5,2759.9,3.2078]
[1749691984662,1.81101,2760.1,2759.5,3.2078]
[1749691984862,0.72452,2759.7,2759.6,0.72453]
[1749691985060,0.72453,2759.6,2759.5,3.2078]
[1749691985363,0.72453,2759.7,2759.5,3.2078]
[1749691985558,0.72453,2759.7,2759.6,0.72453]
[1749691985764,0.72453,2759.7,2759.3,0.00543045]
[1749691985765,0.72459,2759.4,2759.3,0.00543045]
[1749691985961,3.2078,2759.5,2759.4,0.72459]
[1749691986162,3.2078,2759.5,2759.3,0.00543045]
[1749691986361,1.32769,2759.4,2759.3,0.00543045]
[1749691986660,2.62849,2759.4,2759.3,0.00543045]
[1749691987266,2.9900977,2759.4,2759.3,0.00543045]
[1749691987463,11.9865077,2759.4,2758.3,3.2078]
[1749691987759,11.9865077,2759.4,2757.2,3.2078]
[1749691987760,3.2078,2758.4,2757.2,3.2078]
[1749691987964,3.2078,2758.1,2758.0,0.72495]
[1749691988266,3.2078,2758.1,2757.3,0.6116]
[1749691988267,3.2078,2758.4,2757.7,4.721]
[1749691988460,3.2078,2758.1,2758.0,0.72495]
[1749691988660,3.2078,2758.1,2757.8,5.95753045]
[1749691988661,0.00543045,2758.3,2757.9,4.721]
[1749691988963,3.2078,2758.0,2757.9,0.72498]
[1749691989165,3.2078,2758.0,2757.8,0.00543045]
[1749691989662,3.2078,2758.0,2757.9,0.72498]
[1749691989971,3.21323045,2758.3,2758.2,0.7249]
[1749691990164,0.00543045,2758.3,2758.2,5.7249]
[1749691990371,0.00543045,2758.3,2758.2,0.7249]
[1749691990966,0.00543045,2758.3,2758.2,5.7249]
[1749691991264,0.00543045,2758.3,2758.2,23.3289]
[1749691991668,0.00543045,2758.3,2758.2,26.5367]
[1749691992571,3.21323045,2758.3,2757.8,0.00543045]
[1749691992869,3.2078,2758.0,2757.8,0.00543045]
[1749691993271,3.2078,2758.0,2757.9,0.72498]
[1749691993667,0.00543045,2758.3,2758.2,0.7249]
[1749691993668,3.21323045,2758.3,2758.2,0.7249]
[1749691994170,0.00543045,2758.3,2758.2,0.7249]
[1749691994370,0.00543045,2758.3,2758.2,2.515]
[1749691994571,3.2078,2758.8,2758.2,2.515]
[1749691994572,3.2078,2758.8,2758.7,0.72477]
[1749691995273,3.2078,2759.4,2758.7,5.0]
[1749691995464,3.2078,2759.4,2759.3,0.72461]
[1749691995773,3.2078,2759.4,2759.2,0.72462]
[1749691995970,13.1238,2759.4,2758.1,0.72492]
[1749691996175,3.2078,2758.4,2758.3,0.72486]
[1749691996570,3.2078,2758.4,2758.1,0.7249]
[1749691996872,3.2078,2758.4,2758.2,0.72488]
[1749691997064,3.2078,2758.4,2758.3,0.72487]
[1749691997680,3.2078,2758.9,2758.8,0.72474]
[1749691998072,3.2078,2759.2,2759.0,0.72467]
[1749691998271,3.2078,2759.2,2758.5,5.01985]
[1749691998574,3.2078,2759.2,2758.6,1.9106]
[1749691998975,3.2078,2759.2,2759.1,0.72466]
[1749691999175,3.2078,2759.2,2759.0,0.72468]
[1749691999377,3.2078,2759.2,2758.9,0.7247]
[1749691999378,3.93245,2759.2,2758.9,0.7247]
[1749691999571,3.2078,2759.2,2758.8,4.916]
[1749691999768,3.2078,2758.9,2758.8,5.64071]
[1749692000171,3.2078,2758.9,2758.6,1.9106]
[1749692000475,3.2078,2758.9,2758.8,0.72474]
[1749692002276,3.2078,2758.9,2758.8,5.72474]
[1749692002477,3.2078,2758.9,2758.8,0.72474]
[1749692002971,3.2078,2759.5,2759.1,1.81165]
[1749692003172,3.2078,2759.5,2759.4,0.72458]
[1749692003371,0.00543045,2759.6,2759.5,0.72456]
[1749692003768,0.00543045,2759.6,2759.4,0.72457]
[1749692004078,0.00543045,2759.6,2759.2,0.00543045]
[1749692004079,0.72461,2759.3,2759.2,0.00543045]
[1749692007078,5.0,2759.3,2757.9,1.81245]
[1749692007378,3.93265,2758.4,2758.3,0.72487]
[1749692007774,3.2078,2758.4,2758.3,0.72487]
[1749692007979,3.2078,2758.4,2758.1,0.6093]
[1749692008381,3.2078,2758.4,2758.3,0.72487]
[1749692008581,3.2078,2758.7,2758.6,0.72479]
[1749692008883,3.2078,2758.7,2758.4,1.2549]
[1749692009179,3.2078,2758.7,2758.6,0.72479]
[1749692012285,3.2078,2758.7,2758.6,1.35109]
[1749692013284,3.2078,2759.0,2758.6,0.6263]
[1749692013584,3.2078,2758.7,2758.2,4.917]
[1749692013775,3.93265,2758.4,2758.2,0.72489]
[1749692014081,0.72493,2758.1,2758.0,0.00543045]
[1749692014388,3.93273,2758.1,2758.0,0.00543045]
[1749692014580,5.10222801,2758.1,2758.0,0.00543045]
[1749692015081,9.37729801,2758.1,2756.8,3.2078]
[1749692015283,1.81226,2758.2,2756.5,2.1037179]
[1749692015284,0.72516,2757.3,2756.6,1.9388]
[1749692015584,3.2078,2756.9,2756.6,6.1471]
[1749692015788,3.2078,2756.9,2756.7,0.72528]
[1749692015985,3.2078,2756.9,2756.6,5.5539]
[1749692016778,3.2078,2756.9,2756.6,6.8558]
[1749692016980,3.2078,2756.9,2756.8,0.72527]
[1749692017281,0.72542,2756.3,2755.9,3.2078]
[1749692017484,3.2078,2756.5,2755.7,1.3019]
[1749692017781,3.2078,2756.5,2755.8,3.2078]
[1749692017986,3.2078,2756.2,2755.5,25.8678]
[1749692018283,3.2078,2756.5,2755.7,1.3019]
[1749692018486,3.2078,2756.4,2756.3,0.72537]
[1749692018879,3.9331,2756.7,2756.2,18.53841]
[1749692019077,3.2078,2756.6,2756.3,0.72539]
[1749692019277,3.2078,2756.6,2756.1,17.812]
[1749692019477,1.2546,2756.5,2756.2,0.72541]
[1749692019686,3.2078,2756.3,2756.1,18.53745]
[1749692019887,3.2078,2756.3,2756.2,0.72542]
[1749692020277,3.2078,2756.3,2755.3,1.81416]
[1749692020483,4.919,2756.5,2755.3,1.81416]
[1749692020484,3.2078,2756.0,2755.6,1.2008]
[1749692020985,3.93329,2756.0,2755.5,0.72559]
[1749692021286,3.2078,2756.0,2755.9,0.7255]
[1749692021491,0.2902,2756.2,2755.7,3.2078]
[1749692021678,0.2902,2756.2,2756.1,0.72545]
[1749692022275,5.2902,2756.2,2755.7,17.841]
[1749692022475,3.2078,2756.0,2755.1,26.5945]
[1749692022680,3.2078,2755.7,2755.1,8.7535]
[1749692022883,3.2078,2755.7,2755.1,1.8827]
[1749692023085,3.2078,2755.3,2755.0,0.72572]
[1749692023385,3.2078,2755.3,2754.8,3.2078]
[1749692023595,0.0054408,2755.4,2755.3,0.72566]
[1749692024680,0.0054408,2755.4,2754.8,3.2078]
[1749692024885,3.2078,2755.3,2754.8,3.2078]
[1749692025085,3.2078,2755.3,2755.2,0.72569]
[1749692025887,3.2078,2755.3,2755.0,0.72572]
[1749692026184,3.2078,2755.3,2754.7,0.00968189]
[1749692026388,4.3938,2755.3,2755.0,0.72572]
[1749692026585,3.2078,2755.3,2755.2,0.72568]
[1749692026885,0.0054408,2755.4,2755.3,0.72565]
[1749692027087,0.0054408,2755.4,2755.2,21.34965]
[1749692027384,0.0054408,2755.4,2755.3,23.68965]
[1749692027782,0.0054408,2755.4,2755.3,0.72565]
[1749692028087,0.0054408,2755.4,2755.3,23.68865]
[1749692028289,0.0054408,2755.4,2755.3,24.95825]
[1749692029083,0.0054408,2755.4,2755.3,29.95825]
[1749692029282,3.498,2756.2,2755.4,1.81409]
[1749692029486,3.498,2756.2,2755.5,1.2696]
[1749692029878,3.2078,2755.8,2755.6,22.963]
[1749692030082,3.2078,2755.8,2755.7,0.72554]
[1749692030282,3.2078,2755.8,2755.5,0.0054408]
[1749692030786,1.93507,2755.7,2755.5,0.0054408]
[1749692031683,0.72558,2755.6,2755.5,0.0054408]
[1749692031882,1.93508,2755.6,2755.5,0.0054408]
[1749692032079,1.2095,2755.6,2755.5,0.0054408]
[1749692032284,0.72558,2755.6,2755.5,0.0054408]
[1749692032490,1.93508,2755.6,2755.5,0.0054408]
[1749692032684,1.2095,2755.6,2755.5,0.0054408]
[1749692032885,3.2078,2755.8,2755.5,0.7310308]
[1749692033086,4.4173,2755.8,2755.6,0.72558]
[1749692033289,3.2078,2755.8,2755.7,0.72555]
[1749692033788,0.0054408,2756.0,2755.9,0.7255]
[1749692035281,0.72551,2755.9,2755.6,0.6085]
[1749692035491,3.93334,2755.8,2755.5,1.3724408]
[1749692035790,3.2078,2755.8,2755.5,0.0054408]
[1749692036188,3.2078,2755.8,2755.7,0.72555]
[1749692037088,3.2078,2755.8,2755.5,0.0054408]
[1749692037389,3.2078,2755.8,2755.7,0.72555]
[1749692038094,0.2956408,2756.0,2755.9,0.7255]
[1749692038688,0.0054408,2756.0,2755.9,0.7255]
[1749692039487,0.0054408,2756.0,2755.9,1.9133]
[1749692039691,0.0054408,2756.0,2755.9,2.5629]
[1749692039994,0.0054408,2756.0,2755.9,3.169]
[1749692040695,3.2078,2756.5,2756.4,0.72537]
[1749692042894,3.2078,2756.5,2756.3,18.66138]
[1749692042895,3.93315,2756.5,2756.3,18.66138]
[1749692043096,3.93315,2756.5,2756.2,23.70641]
[1749692043389,3.2078,2756.5,2755.9,19.1867]
[1749692043695,3.2078,2756.6,2756.5,0.72534]
[1749692043890,4.39590623,2756.6,2756.5,0.72534]
[1749692044390,0.72536,2756.5,2756.3,5.77539]
[1749692044595,0.72536,2756.5,2756.2,1.289]
[1749692044596,3.2078,2756.6,2755.9,6.3057]
[1749692044788,0.8397408,2756.7,2756.0,17.948]
[1749692044789,4.37644139,2756.5,2756.0,17.948]
[1749692044984,1.16864139,2756.4,2756.3,0.72539]
[1749692045288,1.16864139,2756.4,2756.3,0.7254]
[1749692045688,3.2078,2756.5,2756.4,0.72537]
[1749692045890,4.37760262,2756.5,2756.4,0.72537]
[1749692046494,3.2078,2756.5,2756.4,0.72537]
[1749692047195,3.2078,2756.5,2756.4,1.94477]
[1749692047783,0.8397408,2756.7,2756.6,0.72532]
[1749692047986,2.00524219,2756.7,2756.6,18.66832]
[1749692048485,3.2078,2757.2,2757.1,0.72519]
[1749692048684,0.6346,2757.9,2757.2,1.81291]
[1749692048890,0.6346,2757.9,2757.0,3.2078]
[1749692049091,0.72526,2756.9,2756.5,3.93313]
[1749692049387,0.72519,2757.1,2756.5,3.2078]
[1749692049595,0.72522,2757.0,2756.6,0.72531]
[1749692049994,2.5112408,2757.1,2756.5,3.2132408]
[1749692049995,0.72526,2756.9,2756.5,0.0054408]
[1749692050296,0.72524,2756.9,2756.6,0.72531]
[1749692050492,1.99732,2757.0,2756.7,0.72529]
[1749692050793,1.2391408,2757.1,2756.5,3.2132408]
[1749692050993,1.2391408,2757.1,2757.0,0.72521]
[1749692051183,0.6045408,2757.1,2756.9,0.72523]
[1749692051383,0.6045408,2757.1,2757.0,0.72521]
[1749692051593,0.6045408,2757.1,2756.9,0.72522]
[1749692051788,0.6045408,2757.1,2756.8,7.02855]
[1749692051997,1.3297408,2757.1,2756.8,6.3033]
[1749692052193,0.72524,2756.9,2756.5,0.0054408]
[1749692052499,0.72525,2756.9,2756.6,0.72531]
[1749692052792,0.0054408,2757.1,2757.0,0.72521]
[1749692053690,0.0054408,2757.1,2757.0,18.71621]
[1749692053992,0.0054408,2757.1,2757.0,21.92401]
[1749692054190,0.0054408,2757.1,2757.0,20.01221]
[1749692054395,0.0054408,2757.1,2757.0,23.22001]
[1749692054591,3.93279,2757.9,2757.2,1.8129]
[1749692054891,3.93279,2757.9,2757.0,28.22001]
[1749692054892,3.2078,2757.9,2757.0,3.2078]
[1749692055096,3.2078,2757.6,2757.0,17.993]
[1749692055296,0.72515,2757.3,2757.0,17.993]
[1749692055492,0.72522,2757.0,2756.6,1.2879]
[1749692055688,3.2078,2757.0,2756.6,19.2829]
[1749692055890,2.4256,2757.2,2756.6,19.2829]
[1749692056091,3.2078,2757.0,2756.6,19.2829]
[1749692056299,0.7252,2757.1,2756.6,20.00822]
[1749692056596,0.72519,2757.1,2756.6,20.0082]
[1749692056794,3.2078,2757.0,2756.5,0.0054408]
[1749692057200,0.72525,2756.9,2756.6,17.976]
[1749692058001,3.93301,2757.0,2756.6,17.976]
[1749692058298,0.72524,2756.9,2756.6,17.976]
[1749692058489,3.2078,2757.0,2756.6,17.976]
[1749692058695,3.2078,2757.0,2756.7,0.5963]
[1749692059099,3.2078,2757.0,2756.7,1.7822]
[1749692059303,3.2078,2757.0,2756.7,2.50748]
[1749692059601,3.93302,2757.0,2756.7,1.7822]
[1749692059795,3.2078,2757.0,2756.7,2.50748]
[1749692059990,3.93304,2757.0,2756.7,1.7822]
[1749692060196,3.93304,2757.0,2756.7,2.50749]
[1749692060495,1.214,2757.2,2756.7,1.7822]
[1749692060698,1.214,2757.2,2756.7,4.99]
[1749692060894,0.72523,2757.0,2756.7,2.50749]
[1749692061198,1.81297,2757.1,2756.5,0.0054408]
[1749692061398,0.72529,2756.8,2756.6,17.972]
[1749692061598,0.72526,2756.9,2756.6,18.69732]
[1749692061797,1.17279427,2756.8,2756.6,18.69732]
[1749692061992,1.17279427,2756.8,2756.6,17.972]
[1749692061993,0.72527,2756.8,2756.6,17.972]
[1749692062394,3.93311,2756.7,2756.6,17.977]
[1749692062598,0.72529,2756.7,2756.6,17.977]
[1749692063098,1.89861187,2756.7,2756.6,17.977]
[1749692063300,3.2078,2757.0,2756.6,17.977]
[1749692063606,0.72529,2756.7,2756.6,17.977]
[1749692063909,3.2078,2757.0,2756.6,17.976]
[1749692064094,1.17358071,2756.9,2756.6,17.976]
[1749692064300,1.214,2757.2,2756.6,21.1838]
[1749692064495,0.0054408,2757.4,2756.7,1.2076]
[1749692064799,0.7305608,2757.4,2756.8,23.095]
[1749692065004,0.72516,2757.3,2756.9,0.72523]
[1749692065212,0.7305708,2757.4,2756.8,23.7163]
[1749692065410,0.0054408,2757.4,2756.8,26.9241]
[1749692065704,0.0054408,2757.4,2757.3,0.72513]
[1749692065902,0.0054408,2757.4,2757.2,0.72515]
[1749692066296,0.0054408,2757.4,2757.3,0.72513]
[1749692066499,0.7305608,2757.4,2757.1,0.72517]
[1749692066698,3.2078,2757.3,2756.8,0.6213]
[1749692066905,3.2078,2757.0,2756.9,0.72524]
[1749692067107,3.2078,2757.0,2756.6,17.979]
[1749692067307,3.2078,2757.0,2756.9,0.72524]
[1749692067904,3.2078,2757.0,2756.8,0.72525]
[1749692068109,3.2078,2757.0,2756.6,17.979]
[1749692068308,3.2078,2757.0,2756.7,0.72528]
[1749692068505,3.93302,2757.0,2756.8,0.72525]
[1749692068712,3.2078,2757.0,2756.8,0.72527]
[1749692069008,3.2078,2757.0,2756.9,0.72524]
[1749692069206,1.98805,2757.3,2757.0,0.7252]
[1749692069405,1.90025289,2757.2,2757.0,0.72521]
[1749692069604,1.17531515,2757.1,2756.9,0.72523]